[Event "17th Paracin Open 2024"]
[Site "Paracin"]
[Date "2024.07.08"]
[Round "6.5"]
[White "Agibileg, Uurtsaikh"]
[Black "Akbas, Umut Ata"]
[Result "0-1"]
[ECO "E59"]
[WhiteElo "2441"]
[BlackElo "2437"]
[Annotator "TA"]
[PlyCount "76"]
[EventDate "2024.07.02"]
[EventType "swiss"]
[EventCountry "SRB"]
[SourceTitle "playchess.com"]
[Source "ChessBase"]
[SourceQuality "1"]
[TimeControl "5400+30"]

{[%evp 23,76,0,0,0,0,0,0,0,0,0,0,0,0,0,9,-18,-7,-14,0,-17,-27,-59,-33,-36,-50,-174,-159,-159,-147,-230,-237,-245,-237,-350,-331,-350,-334,-360,-282,-365,-347,-379,-327,-311,-323,-315,-289,-590,-588,-539,-531,-701,-710,-626,-645]} 1. d4 {[%emt 0:00:21]} Nf6 {[%emt 0:02:15]} 2. c4 {[%emt 0:00:16]} e6 {[%emt 0:00:07]} 3. Nc3 {[%emt 0:00:20]} Bb4 {[%emt 0:00:08]} 4. e3 {[%emt 0:00:24]} O-O {[%emt 0:00:14]} 5. Bd3 {[%emt 0:00:24]} d5 {[%emt 0:00:10]} 6. a3 {[%emt 0:00:28]} Bxc3+ {[%emt 0:00:11]} 7. bxc3 {[%emt 0:00:10]} dxc4 {[%emt 0:00:06]} 8. Bxc4 {[%emt 0:00:10]} c5 {[%emt 0:00:05]} 9. Nf3 {[%emt 0:00:12]} Qc7 {[%emt 0:00:08]} 10. Be2 {[%emt 0:00:16]} Nc6 {[%emt 0:00:08]} 11. O-O {[%emt 0:02:42]} e5 {[%emt 0:00:08]} 12. Bb2 {[%emt 0:01:23]} Rd8 {[%emt 0:00:14]} 13. Qc2 {[%emt 0:00:38]} Bg4 {[%emt 0:00:14]} 14. Nxe5 {[%emt 0:01:31]} Bxe2 {[%emt 0:00:22]} 15. Qxe2 {[%emt 0:00:21] The position is equal.} Nxe5 {[%emt 0:00:06]} 16. dxe5 {[%emt 0:00:17]} Qxe5 {[%emt 0:00:07]} 17. c4 {[%emt 0:00:21]} Qe6 {[%emt 0:00:22]} 18. Rfd1 {[%emt 0:04:37]} Ne4 {[%emt 0:00:51]} 19. h3 {[%emt 0:06:12]} h6 {[%emt 0:02:03]} 20. Rac1 {[%emt 0:07:51]} b6 {[%emt 0:05:27]} 21. Qf3 {[%emt 0:08:21]} f6 {[%emt 0:09:42]} 22. Qf4 {[%emt 0:04:39]} Rd2 {[%emt 0:11:39]} 23. Rxd2 {[%emt 0:16:53]} Nxd2 {[%emt 0:02:53]} 24. Qg4 {[%emt 0:00:15] This move loses the game for White.} (24. Bc3 $15 Ne4 (24... Nxc4 25. Bxf6 Nxe3 26. Bxg7 $11) 25. a4) 24... Qxg4 $19 {[%emt 0:01:47]} 25. hxg4 {[%emt 0:00:07][%mdl 4096] Endgame. KRB-KRN} Rd8 {[%emt 0:00:10] Black is more active.} 26. f3 {[%emt 0:01:42]} (26. Bc3 $17) 26... Rd3 {[%emt 0:04:55]} 27. Rc2 {[%emt 0:07:55]} Nb1 {[%emt 0:01:54][%cal Od3d2]} 28. a4 {[%emt 0:01:34]} (28. Rc1 $142 Nxa3 29. e4) 28... Rd2 {[%emt 0:00:37]} ({Don't do} 28... Rxe3 29. a5) 29. Rxd2 {[%emt 0:00:42]} Nxd2 {[%emt 0:00:10] KB-KN} 30. Kf2 {[%emt 0:00:22]} Nxc4 {[%emt 0:00:07]} 31. Bc3 {[%emt 0:00:07]} Ne5 {[%emt 0:08:28]} 32. Kg3 {[%emt 0:05:26]} Kf7 {[%emt 0:04:50]} 33. f4 {[%emt 0:01:22]} Nc4 {[%emt 0:00:58][%cal Oa7a6]} 34. Kf3 {[%emt 0:00:25]} Ke6 {[%emt 0:02:11] ...a6 is the strong threat.} 35. Ke4 $2 {[%emt 0:00:36] [#]} (35. e4 {nothing else works.}) 35... Nd6+ {[%emt 0:00:22] Black is clearly winning.} 36. Kd3 {[%emt 0:00:43]} Kd5 {[%emt 0:00:21]} 37. g5 {[%emt 0:00:38]} hxg5 {[%emt 0:00:13]} 38. fxg5 {[%emt 0:00:06]} fxg5 {[%emt 0:00:24] Weighted Error Value: White=0.39/Black=0.06 (flawless) .  Mistake:       	White=4     	---        Inaccurate:     	White=2     	Black=1      OK:         	White=10    	Black=11     Best:        	White=1     	Black=2} 0-1

[Event "17th Paracin Open 2024"]
[Site "Paracin"]
[Date "2024.07.08"]
[Round "6.6"]
[White "Pasti, Aron"]
[Black "Safarli, Eltaj"]
[Result "0-1"]
[ECO "B33"]
[WhiteElo "2402"]
[BlackElo "2595"]
[Annotator "TA"]
[PlyCount "114"]
[EventDate "2024.07.02"]
[EventType "swiss"]
[EventCountry "SRB"]
[SourceTitle "playchess.com"]
[Source "ChessBase"]
[SourceQuality "1"]
[TimeControl "5400+30"]

{[%evp 19,114,0,8,2,0,0,0,-1,7,13,11,8,6,0,6,7,0,0,22,-10,-7,-73,-66,-79,-22,-46,-51,-45,-43,-44,-46,-75,-72,-91,-94,-102,-75,-73,-69,-74,-76,-76,-62,-65,-62,-181,-212,-227,-219,-226,-225,-194,-158,-147,-124,-193,-199,-200,-201,-175,-191,-277,-263,-377,-393,-437,-377,-368,-308,-364,-361,-258,-308,-405,-400,-29979,-29980,-29980,-29981,-29981,-29982,-29983,-29984,-29984,-29985,-29987,-29988,-29988,-29989,-29989,-29990,-29992,-29993,-29993,-29994,-29994,-29995]} 1. e4 {[%emt 0:00:09]} c5 {[%emt 0:01:49]} 2. Nf3 {[%emt 0:00:08]} Nc6 {[%emt 0:00:07]} 3. d4 {[%emt 0:00:06]} cxd4 {[%emt 0:00:03]} 4. Nxd4 {[%emt 0:00:09]} Nf6 {[%emt 0:00:04]} 5. Nc3 {[%emt 0:00:09]} e5 {[%emt 0:00:03]} 6. Ndb5 {[%emt 0:00:08]} d6 {[%emt 0:00:04]} 7. Nd5 {[%emt 0:00:07]} Nxd5 {[%emt 0:00:10]} 8. exd5 {[%emt 0:00:07]} Nb8 {[%emt 0:00:05][%cal Bc6b8,Bb8d7,Bd7f6][%mdl 32]} 9. a4 {[%emt 0:00:26]} Be7 {[%emt 0:00:06]} 10. Be2 {[%emt 1:34:01]} O-O {[%emt 0:00:43]} 11. Bd2 {[%emt 0:00:00][%cal Bc1d2,Bd2b4,Bb4c3][%mdl 32] B33: Sicilian: Pelikan and Sveshnikov Variations.} Nd7 {[%emt 0:00:11]} 12. a5 {[%emt 0:00:00]} a6 {[%emt 0:01:04]} 13. Na3 {[%emt 0:00:00]} Nf6 {[%emt 0:01:05]} 14. Bb4 {[%emt 0:00:00]} Bf5 {[%emt 0:01:45]} 15. Nc4 {[%emt 0:00:00]} Be4 {[%emt 0:00:28]} 16. Ne3 $146 {[%emt 0:00:00]} ({Predecessor:} 16. f3 Bg6 17. Nb6 Rb8 18. O-O Nd7 19. Nxd7 Qxd7 20. c4 Rfe8 21. Kh1 Bg5 22. Bd2 {1-0 Boehme,S-Moser,R Team-ch L18K1-R(6-7) 2020}) 16... b5 {[%emt 0:01:22]} 17. c4 {[%emt 0:00:00]} bxc4 {[%emt 0:00:30]} 18. Bxc4 {[%emt 0:00:00]} Qb8 {[%emt 0:00:30]} 19. Bc3 {[%emt 0:00:00]} Bg6 {[%emt 0:01:50]} 20. Qe2 {[%emt 0:00:00]} (20. Be2 $11) 20... Ne4 $17 {[%emt 0:06:28]} 21. O-O {[%emt 0:00:00]} Qa7 {[%emt 0:05:38]} (21... Nxc3 $17 22. bxc3 Qc8) 22. Nc2 {[%emt 0:00:00]} Nxc3 {[%emt 0:03:22]} 23. bxc3 {[%emt 0:00:00]} Bxc2 {[%emt 0:00:11]} 24. Qxc2 {[%emt 0:00:00]} Rfc8 {[%emt 0:00:07]} 25. Qe2 {[%emt 0:00:00]} Rc5 {[%emt 0:06:39]} 26. Kh1 {[%emt 0:00:00]} Qc7 {[%emt 0:03:24]} 27. Bd3 {[%emt 0:00:00]} Rxa5 {[%emt 0:02:06]} (27... Rxd5 $2 {too greedy.} 28. Be4 $18 (28. Bxa6 Qc6 $17)) 28. Rxa5 {[%emt 0:00:00]} Qxa5 {[%emt 0:00:04]} 29. f4 {[%emt 0:00:00]} Qxc3 {[%emt 0:01:41]} 30. Qf3 {[%emt 0:00:00][%cal Od3h7] [#] Bxh7+! would now be deadly.} e4 $1 {[%emt 0:07:28]} 31. Qxe4 {[%emt 0:00:00]} g6 $1 {[%emt 0:00:04]} 32. Bxa6 {[%emt 0:00:00]} ({White should play} 32. Qe2 $1 $15) 32... Rxa6 $19 {[%emt 0:02:55]} 33. Qxe7 $15 {[%emt 0:00:00][%mdl 4096] Endgame. KQR-KQR} Ra1 {[%emt 0:00:12][%cal Ra1f1]} 34. Qe8+ {[%emt 0:00:00]} Kg7 {[%emt 0:00:05]} 35. Qe2 {[%emt 0:00:00]} Qc1 {[%emt 0:07:33] Prevents g3.} 36. Kg1 {[%emt 0:00:00]} Qc5+ {[%emt 0:00:07]} 37. Kh1 {[%emt 0:00:00] [#]} (37. Qf2 $17 Rxf1+ 38. Kxf1 Qxd5 39. Qb2+ f6 40. Qe2) 37... Rxf1+ $1 $19 {[%emt 0:00:08]} 38. Qxf1 {[%emt 0:00:00]} Qxd5 {[%emt 0:00:03] KQ-KQ} 39. Qa1+ {[%emt 0:00:00]} Kg8 {[%emt 0:00:10]} 40. h3 {[%emt 0:00:00]} (40. Qa4 $142) 40... Qe4 {[%emt 0:01:56]} 41. Qf6 {[%emt 0:00:00]} (41. Qc1 $142) 41... d5 {[%emt 0:00:24]} 42. Qd6 {[%emt 0:00:00]} h5 {[%emt 0:00:34]} 43. Qf6 {[%emt 0:00:00]} Qe6 {[%emt 0:02:33]} 44. Qd4 {[%emt 0:00:00]} Qe1+ {[%emt 0:00:59]} 45. Kh2 {[%emt 0:00:00]} Qe4 {[%emt 0:00:11]} 46. Qf6 {[%emt 0:00:00]} d4 {[%emt 0:00:20] And now ...d3 would win.} 47. g4 {[%emt 0:06:12]} (47. f5 $19 Qf4+ (47... gxf5 48. Qg5+ Kf8 49. Qd8+ Qe8 50. Qxd4 $11) (47... Qxf5 48. Qxd4 Qf1 49. Qc3 $15) 48. Kg1) 47... hxg4 {[%emt 0:06:42]} 48. hxg4 {[%emt 0:00:05]} d3 {[%emt 0:00:03]} 49. f5 {[%emt 0:01:47]} Qf4+ {[%emt 0:05:13]} (49... Qxg4 50. Qd8+ Kh7 51. Qxd3 Qxf5 (51... gxf5 $2 52. Qb3 $19) 52. Qc4 $19) 50. Kh3 {[%emt 0:02:09]} d2 {[%emt 0:00:14]} 51. Qd8+ {[%emt 0:01:04]} Kg7 {[%emt 0:00:26]} 52. Qd3 {[%emt 0:03:18]} gxf5 {[%emt 0:01:41]} 53. gxf5 {[%emt 0:00:05]} Kh6 {[%emt 0:01:00]} 54. f6 {[%emt 0:03:09]} Qg5 {[%emt 0:01:30]} ({Worse is} 54... Qxf6 55. Qxd2+ Kg6 56. Qg2+ Kh5 57. Qd5+ Kh6 58. Kg4 $11) 55. Qd8 {[%emt 0:01:35]} Qh5+ {[%emt 0:00:55]} 56. Kg3 {[%emt 0:00:04]} d1=Q {[%emt 0:00:20][%csl Gh5][%cal Rd1f3]} 57. Qd2+ {[%emt 0:00:12]} Qg5+ {[%emt 0:00:11]} 0-1

[Event "17th Paracin Open 2024"]
[Site "Paracin"]
[Date "2024.07.08"]
[Round "6.7"]
[White "Khripachenko, Alexander"]
[Black "Sasikiran, Krishnan"]
[Result "1/2-1/2"]
[ECO "C95"]
[WhiteElo "2346"]
[BlackElo "2581"]
[Annotator "TA"]
[PlyCount "110"]
[EventDate "2024.07.02"]
[EventType "swiss"]
[EventCountry "SRB"]
[SourceTitle "playchess.com"]
[Source "ChessBase"]
[SourceQuality "1"]
[TimeControl "5400+30"]

{[%evp 26,110,27,25,31,10,26,18,15,17,9,14,25,9,26,-4,0,-11,0,-12,-12,-12,-8,-12,-11,-13,-17,-11,-8,-17,-4,-14,-4,-18,-12,-30,0,-17,-17,-5,-8,-13,-20,-35,0,0,0,0,38,-28,-12,-32,-12,-24,-13,-13,-14,-15,0,-38,-14,-58,-8,-22,-20,-20,-18,-63,-37,-50,-56,-52,0,0,0,-49,-46,-46,-69,-115,-99,-67,-98,-108,-70,-64,-29]} 1. e4 {[%emt 0:00:03]} e5 {[%emt 0:00:15]} 2. Nf3 {[%emt 0:00:07]} Nc6 {[%emt 0:00:08]} 3. Bb5 {[%emt 0:00:08][%cal Bf1b5,Bb5a4,Ba4b3][%mdl 32]} a6 {[%emt 0:00:12]} 4. Ba4 {[%emt 0:00:10]} Nf6 {[%emt 0:00:11]} 5. O-O {[%emt 0:00:09]} Be7 {[%emt 0:00:11]} 6. Re1 {[%emt 0:00:17]} b5 {[%emt 0:00:13]} 7. Bb3 {[%emt 0:00:07]} d6 {[%emt 0:00:11]} 8. c3 {[%emt 0:00:07]} O-O {[%emt 0:00:11]} 9. h3 {[%emt 0:00:11]} Nb8 {[%emt 0:00:10]} 10. d4 {[%emt 0:00:16]} Nbd7 {[%emt 0:00:15]} 11. Nbd2 {[%emt 0:00:21]} Bb7 {[%emt 0:00:11]} 12. Bc2 {[%emt 0:00:25]} Re8 {[%emt 0:00:12]} 13. Nf1 {[%emt 0:00:20]} Bf8 {[%emt 0:00:15]} 14. Ng3 {[%emt 0:00:12]} a5 {[%emt 0:00:32]} 15. b3 {[%emt 0:10:16]} b4 {[%emt 0:05:03]} 16. Bb2 {[%emt 0:04:20]} g6 {[%emt 0:09:34] The position is equal.} 17. Qd2 {[%emt 0:05:00]} c5 {[%emt 0:23:32] ...bxc3 is the strong threat.} 18. d5 {[%emt 0:04:35]} Qc7 {[%emt 0:07:05]} 19. c4 {[%emt 0:04:30]} a4 {[%emt 0:01:21]} 20. Rad1 {[%emt 0:02:41]} Bc8 {[%emt 0:04:24]} 21. Rf1 {[%emt 0:02:18]} (21. bxa4 Nb6 22. Qd3 Bd7 $15 (22... Nxa4 23. Bxa4 Rxa4 24. a3 $15)) 21... Qd8 {[%emt 0:01:51]} 22. Bb1 {[%emt 0:03:09]} Ra7 {[%emt 0:03:38]} 23. Rde1 {[%emt 0:08:42]} Bg7 {[%emt 0:03:09]} 24. Bc1 {[%emt 0:08:04]} Nf8 {[%emt 0:04:01]} 25. Nh2 {[%emt 0:01:41]} h5 {[%emt 0:02:05]} 26. Ne2 {[%emt 0:15:14]} N8h7 {[%emt 0:08:22]} 27. Nf3 {[%emt 0:04:48]} Nd7 {[%emt 0:03:14]} 28. Qd1 {[%emt 0:02:24]} Bf6 {[%emt 0:02:55]} 29. Be3 {[%emt 0:00:30]} Ng5 {[%emt 0:02:36]} 30. Nh2 {[%emt 0:01:03]} Nh7 {[%emt 0:03:06]} 31. Nf3 {[%emt 0:00:58]} axb3 {[%emt 0:01:24]} 32. axb3 {[%emt 0:00:05]} Ng5 {[%emt 0:00:34]} 33. Nh2 {[%emt 0:00:44]} Nf8 {[%emt 0:01:02][%cal Og5h3]} 34. Kh1 {[%emt 0:00:32]} Ra1 {[%emt 0:02:13] Strongly threatening ...Nxe4.} 35. Qd2 {[%emt 0:00:48]} Bd7 {[%emt 0:01:26]} 36. Bd3 {[%emt 0:02:24]} Ra3 {[%emt 0:00:41]} 37. Nc1 {[%emt 0:02:06]} (37. Ra1 $14) 37... Ngh7 {[%emt 0:00:51]} 38. Nf3 {[%emt 0:00:08]} Qe7 {[%emt 0:01:10]} 39. Qc2 {[%emt 0:01:59]} Rea8 {[%emt 0:00:56]} 40. Qe2 {[%emt 0:00:39]} Ra1 {[%emt 0:01:19]} 41. Rd1 {[%emt 0:00:44]} R1a3 {[%emt 0:00:39]} 42. Qc2 {[%emt 0:00:36]} Qd8 {[%emt 0:00:59]} 43. Rg1 {[%emt 0:01:05]} Ng5 {[%emt 0:00:48]} (43... g5 $15 44. Nh2 g4) 44. Nh2 {[%emt 0:00:19]} Ra1 {[%emt 0:00:30]} 45. Qd2 {[%emt 0:00:14]} Ngh7 {[%emt 0:01:13]} 46. Nf3 {[%emt 0:00:04]} g5 $1 {[%emt 0:01:21]} 47. Be2 {[%emt 0:04:07]} Ng6 {[%emt 0:01:09]} 48. Nh2 {[%emt 0:02:40] [#]} g4 $1 {[%emt 0:01:49]} 49. hxg4 $11 {[%emt 0:00:42]} h4 {[%emt 0:00:05]} ({But not} 49... Ng5 $6 50. gxh5 Nf8 (50... Nxe4 $2 {perishes.} 51. Qc2 $18) 51. Qd3 $18) 50. g3 {[%emt 0:01:07]} (50. Nd3 R1a2 51. Qe1 Bg5 $14) (50. Nf3 $11) 50... hxg3 $15 {[%emt 0:00:44]} 51. fxg3 {[%emt 0:00:50]} Bg5 $1 {[%emt 0:00:23]} 52. Rdf1 {[%emt 0:00:17] [#]} (52. Nf3 $15 Bxe3 53. Qxe3) 52... Bxe3 $1 $17 {[%emt 0:01:05]} 53. Qxe3 {[%emt 0:00:02]} Qg5 {[%emt 0:00:14]} 54. Qf2 {[%emt 0:00:12]} f6 {[%emt 0:00:46][%mdl 1024] ...Qh6 would now be deadly. Black has strong compensation.} 55. Kg2 $1 {[%emt 0:02:19]} Qh6 {[%emt 0:02:59] Weighted Error Value: White=0.13 (very precise) /Black=0.10 (very precise) .  Mistake:       	White=3     	Black=2      Inaccurate:     	White=4     	Black=4      OK:         	White=11    	Black=11     Best:        	White=1     	---        Strong:       	White=1     	Black=3} 1/2-1/2

[Event "17th Paracin Open 2024"]
[Site "Paracin"]
[Date "2024.07.08"]
[Round "6.8"]
[White "Narayanan, Srinath"]
[Black "Itgelt, Khuyagtsogt"]
[Result "1/2-1/2"]
[ECO "C54"]
[WhiteElo "2533"]
[BlackElo "2411"]
[Annotator "TA"]
[PlyCount "88"]
[EventDate "2024.07.02"]
[EventType "swiss"]
[EventCountry "SRB"]
[SourceTitle "playchess.com"]
[Source "ChessBase"]
[SourceQuality "1"]
[TimeControl "5400+30"]

{[%evp 13,88,7,18,14,16,8,16,21,14,9,16,14,16,14,37,20,9,8,14,6,5,10,19,15,14,27,9,12,13,0,0,0,84,98,94,99,103,92,99,56,75,46,58,60,126,99,98,108,98,93,94,91,86,93,73,85,91,63,115,67,95,62,39,18,50,0,8,8,2,0,0,0,0,0,0,0,0]} 1. e4 {[%emt 0:00:07]} e5 {[%emt 0:00:13]} 2. Nf3 {[%emt 0:00:06]} Nc6 {[%emt 0:00:07]} 3. Bc4 {[%emt 0:00:04]} Nf6 {[%emt 0:00:26]} 4. d3 {[%emt 0:00:08]} Bc5 {[%emt 0:00:11]} 5. O-O {[%emt 0:00:16]} O-O {[%emt 0:01:39]} 6. Nbd2 {[%emt 0:01:03]} d6 {[%emt 0:01:38]} 7. c3 {[%emt 0:03:18]} a6 {[%emt 0:09:40]} 8. a4 {[%emt 0:00:19]} h6 {[%emt 0:00:46]} 9. h3 {[%emt 0:02:34]} Re8 {[%emt 0:03:55]} 10. b4 {[%emt 0:00:21]} Ba7 {[%emt 0:01:02]} 11. Re1 {[%emt 0:00:07]} Be6 {[%emt 0:00:41]} (11... Nh5 {feels hotter.} 12. Nb3 Nf6 13. b5 Nb8) 12. Bxe6 {[%emt 0:00:11]} Rxe6 {[%emt 0:00:08]} 13. Qc2 {[%emt 0:00:05]} Re8 {[%emt 0:01:29]} 14. Rb1 {[%emt 0:00:26]} Qd7 {[%emt 0:02:50]} 15. b5 {[%emt 0:01:53]} axb5 {[%emt 0:09:25]} 16. axb5 {[%emt 0:00:07]} Ne7 {[%emt 0:00:04]} 17. Nc4 {[%emt 0:01:06]} Ng6 {[%emt 0:01:44]} 18. b6 {[%emt 0:02:15]} cxb6 {[%emt 0:00:26]} 19. Nxb6 {[%emt 0:00:26]} Bxb6 {[%emt 0:00:04]} 20. Rxb6 {[%emt 0:00:08]} Ra6 {[%emt 0:00:37]} 21. Rb4 {[%emt 0:03:39]} d5 {[%emt 0:03:04]} 22. Qb3 {[%emt 0:02:36]} Rc6 {[%emt 0:00:26] [#]} (22... Re7 $11) 23. exd5 $1 $16 {[%emt 0:10:54]} ({Much weaker is} 23. Rxb7 $6 Rxc3 24. Qb1 Qc8 $11) 23... Qxd5 {[%emt 0:05:17]} 24. c4 {[%emt 0:00:18]} ({Don't play} 24. Rxb7 Rxc3 25. Qxd5 Nxd5 $11) 24... Qd6 {[%emt 0:00:44]} 25. Rxb7 {[%emt 0:02:54]} Rd8 {[%emt 0:00:11]} 26. c5 {[%emt 0:27:21]} Qd5 {[%emt 0:01:57]} 27. Ba3 {[%emt 0:03:56][%cal Of3e5] Hoping for Nxe5!} Qxb3 {[%emt 0:08:16]} 28. Rxb3 {[%emt 0:00:02]} Nd7 {[%emt 0:00:58]} (28... Rd5 $14) 29. d4 {[%emt 0:03:53]} Rcc8 {[%emt 0:00:36]} 30. Rc3 {[%emt 0:01:22] Threatens to win with c6. White is more active.} exd4 {[%emt 0:01:20]} 31. Nxd4 {[%emt 0:00:08]} Nde5 {[%emt 0:00:48]} 32. Re4 {[%emt 0:04:55]} Nc6 {[%emt 0:01:46]} 33. Nf5 {[%emt 0:03:53]} Rd1+ {[%emt 0:03:04]} 34. Kh2 {[%emt 0:00:01]} Rd2 {[%emt 0:00:05]} 35. Kg3 {[%emt 0:05:27]} Rcd8 {[%emt 0:07:02]} (35... Rc7 $14) 36. Nd6 {[%emt 0:00:13]} (36. Bc1 $16 R2d5 37. Ne3) 36... h5 {[%emt 0:01:08]} 37. f4 {[%emt 0:02:22]} Nge7 {[%emt 0:03:06]} 38. Kh2 {[%emt 0:05:12]} Nd5 {[%emt 0:03:52]} 39. Rf3 {[%emt 0:01:35]} Nd4 {[%emt 0:07:29] The position is equal.} 40. Rf1 {[%emt 0:00:03]} Nf6 {[%emt 0:00:29] [#] ...Rxd6 would now be deadly. Excellent horsemanship.} 41. Ree1 {[%emt 0:01:02]} Nc2 $1 {[%emt 0:03:58][%csl LRa3,LRe1]} 42. Bc1 {[%emt 0:00:09]} R2xd6 {[%emt 0:00:07]} 43. cxd6 {[%emt 0:00:05]} Nxe1 {[%emt 0:00:03]} 44. Rxe1 {[%emt 0:00:04]} Rxd6 {[%emt 0:00:04] Weighted Error Value: White=0.11 (very precise) /Black=0.11 (very precise) .  Mistake:       	White=1     	Black=3      Inaccurate:     	White=5     	Black=2      OK:         	White=7     	Black=16     Best:        	White=3     	---        Strong:       	White=1     	Black=1} 1/2-1/2

[Event "17th Paracin Open 2024"]
[Site "Paracin"]
[Date "2024.07.08"]
[Round "6.9"]
[White "Bryakin, Mikhail"]
[Black "Tanriverdi, Enes"]
[Result "1/2-1/2"]
[ECO "D13"]
[WhiteElo "2469"]
[BlackElo "2371"]
[Annotator "TA"]
[PlyCount "99"]
[EventDate "2024.07.02"]
[EventType "swiss"]
[EventCountry "SRB"]
[SourceTitle "playchess.com"]
[Source "ChessBase"]
[SourceQuality "1"]
[TimeControl "5400+30"]

{[%evp 12,99,21,13,33,31,22,20,33,14,42,3,29,30,27,25,40,-1,35,37,39,0,0,0,0,0,0,0,0,0,0,0,0,0,0,0,0,0,0,0,0,0,0,0,0,0,0,0,0,0,0,0,0,0,0,0,0,0,0,0,0,0,0,0,0,0,0,0,0,0,0,0,0,0,0,0,0,0,0,0,0,0,0,0,0,0,0,0,0,0]} 1. d4 {[%emt 0:01:20]} d5 {[%emt 0:00:01]} 2. c4 {[%emt 0:01:11]} c6 {[%emt 0:00:03]} 3. cxd5 {[%emt 0:03:47]} cxd5 {[%emt 0:00:08]} 4. Bf4 {[%emt 0:00:03]} Nf6 {[%emt 0:00:51]} 5. Nc3 {[%emt 0:00:33]} Nc6 {[%emt 0:00:05]} 6. Nf3 {[%emt 0:00:13]} a6 {[%emt 0:01:07]} 7. Ne5 {[%emt 0:00:07]} Bd7 {[%emt 0:08:04]} 8. e3 {[%emt 0:01:14]} e6 {[%emt 0:00:33]} 9. Bd3 {[%emt 0:00:34]} Be7 {[%emt 0:00:51]} 10. Rc1 {[%emt 0:01:54]} Rc8 {[%emt 0:00:53]} 11. g4 {[%emt 0:01:36]} h6 {[%emt 0:09:37]} (11... Nxe5 $5 12. dxe5 Ne4 $11) 12. h4 {[%emt 0:03:58]} Nxe5 {[%emt 0:06:27]} 13. Bxe5 {[%emt 0:01:30]} Bc6 {[%emt 0:12:44]} 14. Qf3 {[%emt 0:09:46]} Bd6 {[%emt 0:06:40]} 15. Bxd6 {[%emt 0:01:13]} Qxd6 {[%emt 0:00:10]} 16. g5 {[%emt 0:00:48]} Ne4 {[%emt 0:02:43] The position is equal.} 17. Nxe4 {[%emt 0:04:03]} dxe4 {[%emt 0:00:10]} 18. Bxe4 {[%emt 0:00:15]} hxg5 {[%emt 0:06:48]} 19. hxg5 {[%emt 0:04:24]} Rxh1+ {[%emt 0:02:48]} 20. Qxh1 {[%emt 0:00:16] Strongly threatening Qh8+.} Qb4+ {[%emt 0:00:16]} 21. Kd1 {[%emt 0:08:15]} Qa4+ {[%emt 0:02:08]} 22. b3 {[%emt 0:03:46]} Qxa2 {[%emt 0:00:15]} 23. Bxc6+ {[%emt 0:01:51]} bxc6 $11 {[%emt 0:00:19][%mdl 4096] Endgame. KQR-KQR} 24. Qh8+ {[%emt 0:08:26]} Kd7 {[%emt 0:00:50]} 25. Qxg7 {[%emt 0:01:22]} Qxf2 {[%emt 0:00:15]} 26. Qe5 {[%emt 0:01:27]} Rc7 {[%emt 0:08:02]} 27. Rc3 {[%emt 0:04:59]} Qf3+ {[%emt 0:02:27]} 28. Kc2 {[%emt 0:01:21]} Rb7 {[%emt 0:00:38]} 29. Qc5 {[%emt 0:04:49]} Qe2+ {[%emt 0:04:12]} 30. Kc1 {[%emt 0:00:33] Dancing on a razor blade.} Qb5 {[%emt 0:00:48]} 31. Qf8 {[%emt 0:01:25]} Qf1+ {[%emt 0:01:00]} 32. Kb2 {[%emt 0:00:35]} Rb5 {[%emt 0:04:50]} 33. Rc5 {[%emt 0:15:31]} a5 {[%emt 0:06:39]} 34. Rxb5 {[%emt 0:11:33]} cxb5 {[%emt 0:00:06] KQ-KQ} 35. Qc5 {[%emt 0:00:55]} b4 {[%emt 0:03:00]} 36. Qa7+ {[%emt 0:01:59]} Ke8 {[%emt 0:00:17]} 37. Qxa5 {[%emt 0:00:46] [#] And now Qa4+ would win.} Qe2+ {[%emt 0:00:10]} 38. Kb1 {[%emt 0:00:05]} Qd3+ {[%emt 0:00:28]} 39. Kb2 {[%emt 0:00:12]} Qc3+ {[%emt 0:00:10]} (39... Qxe3 40. Qb5+ Kd8 41. Qb8+ (41. Qxb4 Qe2+ 42. Kb1 Qd3+ 43. Kc1 Qe3+ 44. Kc2 Qe4+ 45. Kb2 Qe2+ 46. Kc1 Qe3+ 47. Kb2 Qe2+ $11) 41... Kd7 42. Qb5+ (42. Qxb4 Qxg5 43. Qb7+ Kd6 $11) 42... Kc7 43. Qc5+ Kd7 44. Qb5+ Kc7 45. Qa5+ Kc6 46. Qc5+ Kd7 47. Qa7+ Kc8 48. Qc5+ Kd7) 40. Ka2 {[%emt 0:00:00]} Qc2+ {[%emt 0:00:37]} (40... Qxe3 41. Qb5+ Kd8 42. Qxb4 $14) 41. Ka1 {[%emt 0:00:01]} Qxb3 {[%emt 0:01:34]} 42. Qb5+ {[%emt 0:00:12]} Kf8 {[%emt 0:01:19]} 43. Qb8+ {[%emt 0:00:01]} Kg7 {[%emt 0:00:09]} 44. Qe5+ {[%emt 0:00:01]} Kh7 {[%emt 0:00:46]} 45. Qf6 {[%emt 0:01:06]} Qa3+ {[%emt 0:02:25]} 46. Kb1 {[%emt 0:00:06]} Qb3+ {[%emt 0:00:06]} 47. Ka1 {[%emt 0:00:06]} Qa3+ {[%emt 0:00:59]} 48. Kb1 {[%emt 0:00:10]} Qb3+ {[%emt 0:00:01]} 49. Ka1 {[%emt 0:00:05]} Qa3+ {[%emt 0:00:02]} 50. Kb1 {[%emt 0:00:03] Weighted Error Value: White=0.04 (flawless) /Black=0.03 (flawless) .  Inaccurate:     	White=3     	Black=3      OK:         	White=17    	Black=14     Best:        	White=3     	---} 1/2-1/2